Cogmind - Beta 15 @@@ ROGUE MODE // 2025.10.02 @ 15:48:05 Player: Blue Cog Result: Destroyed by L-41 Fighter with Axe Performance ------------- Evolutions (5) 2500 Regions Visited (10) 2000 Robots Destroyed (94) 470 Value Destroyed (4223) 4223 Prototype IDs (30) 600 Alien Tech Used (0) 0 Bonus (1162) 1162 TOTAL SCORE: 10955 Bonus ------- High Alert Combat Kills 61 Follower Combat Kills 37 Registered with UFD 300 Met Optimus in HQ 500 Met Data Miner 300 Friendly Fire -36 Cogmind --------- Core Integrity 0/1000 Matter 292/300 Energy 74/100 System Corruption 12% Temperature Cool (0) Movement Core (400) Ox7 Location -5/Upper Caves Parts ------- > --- POWER (2) -------- (None) > --- PROPULSION (5) --- (None) > --- UTILITY (7) ------ Improved Coolant Injector Large Storage Unit Improved Focal Shield > --- WEAPON (3) ------- (None) > --- INVENTORY (15) --- Matter Compressor (250) Advanced Signal Interpreter Improved Kinecellerator High-powered Tractor Beam Heavy Plasma Cannon Heavy Plasma Cannon Heavy Plasma Cannon Advanced Plasma Cannon Advanced Plasma Cannon Magnetic Acceleration Cannon Companion Sword Peak State ------------ > --- POWER ------------ Light Angular Momentum Engine Micro Fission Core > --- PROPULSION ------- Light Treads Light Treads Light Treads Medium Treads Medium Treads > --- UTILITY ---------- Advanced Heat Sink Large Storage Unit Weapon Cycler Improved Heavy Armor Plating Improved Focal Shield Advanced Hacking Suite > --- WEAPON ----------- Neutron Cannon Magnetic Acceleration Cannon Magnetic Acceleration Cannon > --- INVENTORY -------- Improved Heat Sink Improved Coolant Injector Matter Compressor Advanced Signal Interpreter Improved Medium Armor Plating Improved Heavy Armor Plating Makeshift Light Armor Plating High-powered Tractor Beam Cooled Plasma Rifle Magnetic Acceleration Cannon Magnetic Acceleration Cannon Heavy Shock Bomb Launcher Missile Launcher Companion Sword [Rating: 78] Favorites ----------- Power Micro Fission Core Engine Light Angular Momentum Engine Power Core Micro Fission Core Propulsion Light Treads Treads Light Treads Leg Makeshift Leg Wheel Compact Wheel Utility Large Storage Unit Device Advanced Heat Sink Storage Large Storage Unit Processor Jamming Amplifier Hackware Advanced Hacking Suite Protection Makeshift Light Armor Plating Weapon Magnetic Acceleration Cannon Energy Gun Heavy Laser Energy Cannon Heavy Plasma Cannon Ballistic Gun Battle Rifle Ballistic Cannon Magnetic Acceleration Cannon Launcher Missile Launcher Slashing Weapon Companion Sword Build | -11 -10 -10 -8 -6 -6 -6 -6 -5 -5 -5 ------- Run | Yrd Mat Sub Scr Fac Low Low Dat Pro Fac Upp Slots Evolved 10 | . . . . 8 . . . . 2 . Power 1 | . . . . 1 . . . . . . Propulsion 3 | . . . . 2 . . . . 1 . Utility 5 | . . . . 5 . . . . . . Weapon 1 | . . . . . . . . . 1 . Parts Attached 110 | 7 2 . 7 28 12 6 . 5 36 7 Power 16 | 1 . . 1 5 1 . . 1 7 . Engine 7 | 1 . . 1 3 . . . 1 1 . Core 9 | . . . . 2 1 . . . 6 . Reactor . | . . . . . . . . . . . Propulsion 28 | 2 . . 2 6 4 4 . . 9 1 Treads 13 | . . . 2 3 . 4 . . 3 1 Leg 6 | . . . . . 4 . . . 2 . Wheel 9 | 2 . . . 3 . . . . 4 . Hover . | . . . . . . . . . . . Flight . | . . . . . . . . . . . Utility 35 | 2 . . 1 10 4 1 . 2 13 2 Device 19 | 1 . . . 5 3 . . . 8 2 Storage 3 | 1 . . 1 . . . . 1 . . Processor 1 | . . . . . . . . . 1 . Hackware 1 | . . . . . . . . . 1 . Protection 11 | . . . . 5 1 1 . 1 3 . Artifact . | . . . . . . . . . . . Weapon 31 | 2 2 . 3 7 3 1 . 2 7 4 Energy Gun 7 | 2 . . . 3 1 . . . 1 . Energy Cannon 9 | . . . . 2 . . . 1 4 2 Ballistic Gun 4 | . 2 . 1 . . 1 . . . . Ballistic Cannon 6 | . . . 1 1 . . . 1 2 1 Launcher 4 | . . . . 1 2 . . . . 1 Special Weapon . | . . . . . . . . . . . Impact Weapon . | . . . . . . . . . . . Slashing Weapon 1 | . . . 1 . . . . . . . Piercing Weapon . | . . . . . . . . . . . Special Melee Weapon . | . . . . . . . . . . . Unidentified Prototypes 4 | . . . 1 . . . . 1 2 . Parts Lost 56 | . . . . 15 5 3 . 1 15 17 Power 12 | . . . . 3 1 1 . 1 3 3 Propulsion 20 | . . . . 6 1 1 . . 7 5 Utility 14 | . . . . 2 2 1 . . 3 6 Weapon 10 | . . . . 4 1 . . . 2 3 Highest Loss Streak 11 | . . . . 11 3 3 . 1 4 5 To Critical Strikes . | . . . . . . . . . . . Average Backups 12 | 2 5 8 9 11 12 13 13 13 14 14 Power . | . 1 1 1 . . . . . . . Propulsion . | 1 1 1 1 . . 1 1 1 . . Utility 5 | . . 1 2 4 6 7 7 6 7 5 Weapon 5 | . 2 5 5 6 5 5 5 5 6 8 Tool/Special . | . . . . . . . . . . . Unused Backups 10 | . 1 . 4 . . . . 1 1 3 Power 1 | . . . 1 . . . . . . . Propulsion 1 | . 1 . . . . . . . . . Utility 4 | . . . . . . . . . 1 3 Weapon 4 | . . . 3 . . . . 1 . . Tool/Special . | . . . . . . . . . . . Average Slot Usage (%) 85 | . 100 100 100 71 88 96 81 93 84 59 Engine 6 | . 14 14 14 9 3 6 6 6 1 . Core 3 | . . . . . 7 3 . . 6 5 Treads 12 | . . . 11 18 . 10 26 26 17 . Leg 2 | . . . . . 17 15 . . 1 . Wheel 5 | . 28 28 16 3 2 . . . 3 1 Device 19 | . 14 14 14 11 24 23 20 20 18 28 Storage 7 | . 14 14 14 6 6 6 6 6 5 5 Protection 6 | . . . . 6 11 15 20 20 5 3 Energy Gun 1 | . 16 . . 1 7 6 . 1 1 . Energy Cannon 3 | . . . . 3 . . . 4 4 10 Ballistic Gun 4 | . 11 28 15 . . 3 . 1 . . Ballistic Cannon 4 | . . . 4 4 . . . 4 8 1 Slashing Weapon 2 | . . . 8 2 2 2 . . . . Peak Build Rating 78 | 7 7 7 25 70 69 62 46 57 78 70 Average Rating 48 | 5 7 7 16 60 56 54 39 51 69 53 On Entrance 35 | . 7 7 7 25 67 62 46 46 52 70 Naked Turns . | . . . . . . . . . . . Heaviest Build 80 | 13 13 12 39 71 68 68 57 76 80 80 Greatest Support 116 | 26 26 26 40 80 75 88 88 88 116 42 Greatest Overweight (x) 21 | . . . 1 14 3 1 . . 4 21 Average Overweight (x) . | . . . . . . . . . . 9 Largest Inventory Capacity 15 | 8 8 8 15 15 15 15 15 15 15 15 Average Capacity 13 | 7 8 8 11 15 15 15 15 15 15 15 Most Carried 15 | 3 8 8 15 15 15 15 15 15 15 15 Average Carried 13 | 2 5 8 10 11 13 15 15 14 14 14 Final Capacity 15 | 8 8 8 15 15 15 15 15 15 15 15 Final Carried 15 | 3 8 8 15 15 15 15 15 15 15 11 Class Distribution -------------------- 29% | Scavenger-Mutant 26% | Mutant 23% | Scavenger-Tank 8% | Tank 4% | Derelict-Skirmisher Dominant Class ---------------- Mutant | -10/Materials Mutant | -10/Subcaves Mutant | -8/Scraptown Derelict-Skirmisher | -6/Factory Scavenger-Mutant | -6/Lower Caves Scavenger-Mutant | -6/Lower Caves Scavenger-Mutant | -6/Data Miner Scavenger-Mutant | -5/Proximity Caves Scavenger-Tank | -5/Factory Tank | -5/Upper Caves Resources | -11 -10 -10 -8 -6 -6 -6 -6 -5 -5 -5 ----------- Run | Yrd Mat Sub Scr Fac Low Low Dat Pro Fac Upp Matter Collected 3501 | 270 . 20 70 394 336 207 . 359 1320 525 Remotely 318 | . . . . . . . . . . 318 Salvage Created 4743 | 174 21 . . 1174 336 455 . 354 1682 547 Parts 172 | 7 3 . . 48 13 16 . 5 66 14 Haulers Intercepted . | . . . . . . . . . . . Recyclers Shooed 9 | . . . . 2 . . . . 7 . Parts Field Recycled . | . . . . . . . . . . . Retrieved Matter . | . . . . . . . . . . . Parts Self-Destructed 25 | . . 2 . . 2 . . 7 . 14 Prevented 1 | . . . . . . . . . . 1 Kills | -11 -10 -10 -8 -6 -6 -6 -6 -5 -5 -5 ------- Run | Yrd Mat Sub Scr Fac Low Low Dat Pro Fac Upp Combat Hostiles Destroyed 74 | . . . . 16 4 5 . 10 26 13 Melee 5 | . . . . 2 3 . . . . . Guns 11 | . . . . . 1 5 . 2 3 . Cannons 37 | . . . . 11 . . . 1 15 10 AOE 19 | . . . . 2 . . . 7 7 3 Classes Destroyed 16 | 3 . . . 6 1 1 . . 3 2 Worker 8 | 1 1 . . 1 . . . . 5 . Builder 2 | . . . . 1 . . . . 1 . Tunneler 2 | 2 . . . . . . . . . . Recycler 6 | 1 . . . 2 . . . . 3 . Mechanic 1 | . . . . . . . . . 1 . Watcher 1 | . . . . . . . . . 1 . Swarmer 5 | . . . . . . . . . . 5 Grunt 35 | . . . . 10 2 . . 8 12 3 Brawler 5 | . . . . 2 . . . . 1 2 Duelist 3 | . . . . 1 1 . . . . 1 Sentry 9 | . . . . 2 1 . . 2 3 1 Hunter 2 | . . . . . . . . . 2 . Programmer 9 | . . . . 1 . . . . 8 . Behemoth 1 | . . . . . . . . . . 1 Decomposer 2 | . . . . . . . . . . 2 Samaritan 7 | . . . . . 3 3 . . . 1 Savage 3 | . . . . . . 3 . . . . Butcher 1 | . . . . . . 1 . . . . Mutant 1 | . . . . . . 1 . . . . Best Kill Streak 11 | 3 1 . . 11 2 5 . 5 6 8 Combat Bots Only 8 | . . . . 8 2 5 . 5 5 8 Max Kills in Single Turn 4 | 1 1 . . 2 1 1 . 2 4 2 Gunslinging . | . . . . . . . . . . . Exploded 4 | . . . . 2 . . . 2 4 2 Melee 1 | . . . . 1 1 . . . . . Uniques/NPCs Destroyed . | . . . . . . . . . . . Combat | -11 -10 -10 -8 -6 -6 -6 -6 -5 -5 -5 -------- Run | Yrd Mat Sub Scr Fac Low Low Dat Pro Fac Upp Hostile Shots Fired 745 | . . . . 291 56 33 . 33 185 147 Missed 215 | . . . . 80 21 7 . 14 46 47 Hits 530 | . . . . 211 35 26 . 19 139 100 Melee 29 | . . . . 8 3 10 . . 1 7 Projectile 501 | . . . . 203 32 16 . 19 138 93 Critical Strikes 26 | . . . . 4 3 2 . 3 7 7 Actively Blocked 1 | . . . . . . . . 1 . . Part Disruptions 3 | . . . . . . 2 . . 1 . Damage Taken 10222 | . . . . 2937 566 666 . 394 3280 2379 Core 1621 | . . . . 426 87 76 . . 260 772 Absorbed by Shields . | . . . . . . . . . . . Redirected to Shielding 47 | . . . . . 2 . . 45 . . Ignored by Resistances 341 | . . . . . . . . . 94 247 Core Remaining (%) 76 | 100 . . 100 . . . . 30 . . Volleys Fired 297 | 11 1 . . 46 5 24 . 20 137 53 Largest 3 | 2 2 . . 2 2 2 . 2 3 3 Hottest 278 | 100 100 . . 150 144 97 . 134 270 278 Shots Fired 532 | 22 2 . . 78 12 44 . 35 240 99 Gun 122 | 22 2 . . 8 8 44 . 5 33 . Cannon 380 | . . . . 68 . . . 20 207 85 Launcher 30 | . . . . 2 4 . . 10 . 14 Special . | . . . . . . . . . . . Kinetic 219 | . . . . 37 . 22 . 15 108 37 Thermal 268 | 22 2 . . 24 8 22 . 10 132 48 Explosive 23 | . . . . 2 4 . . 10 . 7 Electromagnetic 22 | . . . . 15 . . . . . 7 Robot Hit Streak 11 | 5 3 . . 10 6 10 . 9 11 11 Robot Miss Streak 4 | 1 . . . 2 1 2 . 1 4 2 Penetration Max . | . . . . . . . . . . . Secondary Targets 3 | . . . . . . 3 . . . . Max Gunslinging Chain 1 | . . . . . . 1 . . . . Shots Hit Robots 362 | 15 1 . . 71 18 39 . 25 137 56 Core Hits 201 | 5 1 . . 41 11 17 . 28 63 35 Critical Kills 1 | . . . . . . . . . 1 . Critical Parts Destroyed 1 | . . . . . . 1 . . . . Critical Strikes 16 | . . . . 1 . 3 . 1 9 2 Burn 3 | . . . . . . 2 . . 1 . Meltdown 1 | . . . . . . . . . 1 . Destroy 1 | . . . . . . 1 . . . . Blast 11 | . . . . 1 . . . 1 7 2 Melee Attacks 46 | . . . . 26 15 5 . . . . Impact . | . . . . . . . . . . . Slashing 46 | . . . . 26 15 5 . . . . Piercing . | . . . . . . . . . . . Sneak Attacks 14 | . . . . 5 5 4 . . . . Combat Hostiles . | . . . . . . . . . . . Follow-up Attacks . | . . . . . . . . . . . Damage Inflicted 15380 | 202 12 . . 2776 958 997 . 1634 6284 2517 Guns 2024 | 202 12 . . 156 103 684 . 69 798 . Cannons 7450 | . . . . 1326 . . . 473 3949 1702 Explosions 4206 | . . . . 530 232 . . 1092 1537 815 Melee 1700 | . . . . 764 623 313 . . . . Ramming . | . . . . . . . . . . . Kinetic 3999 | . . . . 654 . 281 . 318 2034 712 Thermal 5947 | 202 12 . . 644 103 403 . 224 3369 990 Explosive 2976 | . . . . 156 232 . . 1092 881 615 Electromagnetic 758 | . . . . 558 . . . . . 200 Impact . | . . . . . . . . . . . Slashing 1700 | . . . . 764 623 313 . . . . Piercing . | . . . . . . . . . . . Highest Corruption 12 | . . . . 4 4 11 11 11 7 12 Average Corruption 7 | . . . . 3 4 7 11 11 3 11 Corruption Purged 5 | . . . . . . . . . 5 . Corruption Blocked . | . . . . . . . . . . . Effects 164 | . . . . 7 14 25 7 30 30 51 Message Errors 36 | . . . . 1 1 6 2 7 9 10 Matter Fused 35 | . . . . 2 4 5 2 4 6 12 Heat Flow Errors 23 | . . . . 1 5 1 1 6 4 5 Energy Discharges 23 | . . . . . 2 4 2 3 6 6 Data Loss (minor) 23 | . . . . 2 . 6 . 4 2 9 Data Loss (major) 4 | . . . . . . . . . . 4 Misfires 10 | . . . . . 2 . . 6 . 2 Alerts 3 | . . . . 1 . . . . 1 1 Weapon Failures 7 | . . . . . . 3 . . 2 2 Overload Shots 9 | . . . . . . . . . 9 . Effects 1 | . . . . . . . . . 1 . Energy Bleed 1 | . . . . . . . . . 1 . Overflow Damage 856 | . . . . 157 65 63 . . 494 77 Projectiles 236 | . . . . 18 . . . . 177 41 Explosions 371 | . . . . 18 . . . . 317 36 Melee 249 | . . . . 121 65 63 . . . . Knockbacks 30 | . . . . 8 . . . . 22 . Impact . | . . . . . . . . . . . Kinetic 28 | . . . . 7 . . . . 21 . Secondary 2 | . . . . 1 . . . . 1 . Self-Inflicted Damage 588 | . . . . 66 24 . . . 417 81 Shots 12 | . . . . 2 1 . . . 7 2 Rammed . | . . . . . . . . . . . Targets Rammed . | . . . . . . . . . . . Kicked . | . . . . . . . . . . . Crushed . | . . . . . . . . . . . Highest Temperature 317 | 215 39 . . 306 252 178 175 289 309 317 Average Temperature 103 | 82 24 . . 101 78 37 102 106 121 106 Received Heat Transfer 2765 | . . . . 996 210 120 . 163 513 763 Effects 5 | . . . . 1 . . . . 1 3 Interference 5 | . . . . 1 . . . . 1 3 Siege Activations . | . . . . . . . . . . . Martial Activations . | . . . . . . . . . . . Shielding Activations . | . . . . . . . . . . . Robots Disrupted . | . . . . . . . . . . . Combat Hostiles . | . . . . . . . . . . . Robots Corrupted 1 | . . . . 1 . . . . . . Combat Hostiles 1 | . . . . 1 . . . . . . Parts Fried . | . . . . . . . . . . . Impact Corruptions . | . . . . . . . . . . . Robots Melted 1 | . . . . . . . . . 1 . Combat Hostiles 1 | . . . . . . . . . 1 . Parts Melted 12 | . . . . . . 1 . . 10 1 Heat Transferred 8219 | 592 37 . . 994 211 925 . . 4010 1450 Parts Sabotaged . | . . . . . . . . . . . Parts Stolen . | . . . . . . . . . . . Parts Stripped . | . . . . . . . . . . . Power Chain Reactions 4 | . . . . 1 . . . . 3 . Alert | -11 -10 -10 -8 -6 -6 -6 -6 -5 -5 -5 ------- Run | Yrd Mat Sub Scr Fac Low Low Dat Pro Fac Upp Maximum Alert Level 2 | . . . . 2 . . . . 2 . Low Security (%) 68 | 100 100 . . 68 . . . . 65 . Level 1 21 | . . . . 27 . . . . 21 . Level 2 9 | . . . . 3 . . . . 12 . Level 3 . | . . . . . . . . . . . Level 4 . | . . . . . . . . . . . Level 5 . | . . . . . . . . . . . High Security . | . . . . . . . . . . . Max Security . | . . . . . . . . . . . Peak Influence 699 | 10 5 . . 423 . . . . 699 . Initial 74 | . 3 . . . . . . . 74 . Average 155 | 1 1 . . 116 . . . . 184 . Influence Increases 2906 | 20 5 . . 795 90 . . 420 1251 325 Destroy 0b10 Robot/C 1400 | . . . . 320 80 . . 220 520 260 Destroy 0b10 Robot/NC 100 | 20 5 . . 20 . . . . 55 . Destroy Leader 242 | . . . . 80 10 . . 10 122 20 Allied During Kill 10 | . . . . . . . . 10 . . Disable Machine 150 | . . . . 15 . . . . 135 . Destroy Structure 429 | . . . . 25 . . . . 404 . Partial Spotted 15 | . . . . . . . . . 15 . Lose Combat Pursuer 360 | . . . . 135 . . . 180 . 45 Active Sensor Use 200 | . . . . 200 . . . . . . Influence Decreases 2779 | 15 10 . . 373 512 . . 302 676 891 Entered New Map 460 | . 2 . . . 157 . . . 44 257 Time Decay 1779 | 15 8 . . 223 305 . . 272 482 474 Lost Part 520 | . . . . 150 50 . . 10 150 160 Lost Ally 20 | . . . . . . . . 20 . . Squads Dispatched 19 | . . . . 11 . . . . 8 . Investigation 7 | . . . . 5 . . . . 2 . Extermination 4 | . . . . 1 . . . . 3 . Reinforcement 3 | . . . . . . . . . 3 . Assault 2 | . . . . 2 . . . . . . Garrison 3 | . . . . 3 . . . . . . Intercept . | . . . . . . . . . . . Searches Triggered . | . . . . . . . . . . . Data Miner Redirects 2 | . . . . . . . . . 2 . Construction Impeded 1 | . . . . . . . . . 1 . Haulers Reinforced . | . . . . . . . . . . . Active Scanning Responses 2 | . . . . 2 . . . . . . Cargo Convoy Interrupts . | . . . . . . . . . . . Stealth | -11 -10 -10 -8 -6 -6 -6 -6 -5 -5 -5 --------- Run | Yrd Mat Sub Scr Fac Low Low Dat Pro Fac Upp Distress Signals . | . . . . . . . . . . . Communications Jammed . | . . . . . . . . . . . Distress Signals . | . . . . . . . . . . . Times Spotted 121 | . . . . 31 4 5 . 19 39 23 Peak Tracking Total 9 | . . . . 7 3 5 . 7 5 9 Tactical Retreats 18 | . . . . 6 . . . 10 . 2 Traps | -11 -10 -10 -8 -6 -6 -6 -6 -5 -5 -5 ------- Run | Yrd Mat Sub Scr Fac Low Low Dat Pro Fac Upp Traps Triggered 1 | . . . . 1 . . . . . . Indirectly . | . . . . . . . . . . . Trap Hack Attempts . | . . . . . . . . . . . Triggered . | . . . . . . . . . . . Disarmed . | . . . . . . . . . . . Reprogrammed . | . . . . . . . . . . . Reused . | . . . . . . . . . . . Traps Extracted . | . . . . . . . . . . . Installed . | . . . . . . . . . . . Triggered . | . . . . . . . . . . . Machines | -11 -10 -10 -8 -6 -6 -6 -6 -5 -5 -5 ---------- Run | Yrd Mat Sub Scr Fac Low Low Dat Pro Fac Upp Machines Disabled 15 | . . . . 1 . . . 5 9 . Max in Single Turn 2 | . . . . 1 . . . 1 2 . Garrison Access 2 | . . . . 1 . . . . 1 . Machines Repaired . | . . . . . . . . . . . Machines Dismantled . | . . . . . . . . . . . Machines Sabotaged . | . . . . . . . . . . . Overloaded Fab Kills . | . . . . . . . . . . . Hacking | -11 -10 -10 -8 -6 -6 -6 -6 -5 -5 -5 --------- Run | Yrd Mat Sub Scr Fac Low Low Dat Pro Fac Upp Machines Accessed 22 | . 2 . 6 3 1 . 3 . 7 . Terminals 2 | . 2 . . . . . . . . . Fabricators 2 | . . . . . . . . . 2 . Repair Stations 1 | . . . . . . . . . 1 . Recycling Units 5 | . . . . 3 . . . . 2 . Scanalyzers 1 | . . . . . . . . . 1 . Garrison Access 1 | . . . . . . . . . 1 . Total Hacks 70 | . 5 . 26 8 1 . 21 . 9 . Successful 55 | . 2 . 26 2 1 . 21 . 3 . Failed 15 | . 3 . . 6 . . . . 6 . Catastrophic 3 | . . . . 2 . . . . 1 . Database Lockouts . | . . . . . . . . . . . Manual 10 | . 1 . . 7 . . . . 2 . Terminals 5 | . 5 . . . . . . . . . Fabricators 2 | . . . . . . . . . 2 . Repair Stations 2 | . . . . . . . . . 2 . Recycling Units 10 | . . . . 8 . . . . 2 . Scanalyzers 2 | . . . . . . . . . 2 . Garrison Access 1 | . . . . . . . . . 1 . Terminal Hacks 50 | . 2 . 26 . 1 . 21 . . . Record 27 | . 1 . 24 . . . 2 . . . Part Schematic 11 | . . . . . . . 11 . . . Robot Schematic 5 | . . . . . . . 5 . . . Prototype ID Bank 4 | . 1 . . . . . 3 . . . Open Door 2 | . . . 1 . 1 . . . . . Proto ID Catalog 1 | . . . 1 . . . . . . . Fabricator Hacks . | . . . . . . . . . . . Repair Station Hacks . | . . . . . . . . . . . Recycling Unit Hacks . | . . . . . . . . . . . Scanalyzer . | . . . . . . . . . . . Garrison Access Hacks 1 | . . . . . . . . . 1 . Seal Access 1 | . . . . . . . . . 1 . Unauthorized Hacks 4 | . . . . 2 . . . . 2 . Terminals . | . . . . . . . . . . . Fabricators . | . . . . . . . . . . . Repair Stations . | . . . . . . . . . . . Recycling Units 4 | . . . . 2 . . . . 2 . Fedlink 4 | . . . . 2 . . . . 2 . Scanalyzers . | . . . . . . . . . . . Garrison Access . | . . . . . . . . . . . Data Cores Recovered . | . . . . . . . . . . . Used . | . . . . . . . . . . . Hacking Detections 9 | . 2 . . 3 . . . . 4 . Full Trace Events 1 | . . . . 1 . . . . . . Feedback Events . | . . . . . . . . . . . Feedback Blocked . | . . . . . . . . . . . Robot Schematics Acquired 5 | . . . . . . . 5 . . . Robots Built . | . . . . . . . . . . . Authchips . | . . . . . . . . . . . Time . | . . . . . . . . . . . Total Robot Build Rating . | . . . . . . . . . . . Part Schematics Acquired 11 | . . . . . . . 11 . . . Parts Built . | . . . . . . . . . . . Authchips . | . . . . . . . . . . . Time . | . . . . . . . . . . . Total Part Build Rating . | . . . . . . . . . . . Parts Repaired . | . . . . . . . . . . . Time . | . . . . . . . . . . . Parts Recycled . | . . . . . . . . . . . Recycled Matter . | . . . . . . . . . . . Retrieved Matter . | . . . . . . . . . . . Retrieved Components . | . . . . . . . . . . . Parts Scanalyzed . | . . . . . . . . . . . Part Schematics Acquired . | . . . . . . . . . . . Parts Damaged . | . . . . . . . . . . . Bothacking | -11 -10 -10 -8 -6 -6 -6 -6 -5 -5 -5 ------------ Run | Yrd Mat Sub Scr Fac Low Low Dat Pro Fac Upp Used RIF Installer . | . . . . . . . . . . . Robots Hacked . | . . . . . . . . . . . Non-combat . | . . . . . . . . . . . Combat . | . . . . . . . . . . . Robot Hacks Applied . | . . . . . . . . . . . Relay Couplers Released 1 | . . . . 1 . . . . . . Machine Destruction 1 | . . . . 1 . . . . . . Fabnet Peak Effective % . | . . . . . . . . . . . Robots Rewired 2 | . . . . . . 2 . . . . Allies Hacked . | . . . . . . . . . . . Hacks Repelled . | . . . . . . . . . . . Allies | -11 -10 -10 -8 -6 -6 -6 -6 -5 -5 -5 -------- Run | Yrd Mat Sub Scr Fac Low Low Dat Pro Fac Upp Total Allies 3 | . . . . . . 2 . 1 . . Largest Group 3 | . . . . . . 2 2 3 . . Highest-Rated Group 147 | . . . . . . 51 51 147 . . Highest-Rated Ally 96 | . . . . . . 31 31 96 . . Total Orders . | . . . . . . . . . . . Ally Attacks 14 | . . . . . . . . 14 . . Total Damage 428 | . . . . . . . . 428 . . Kills 1 | . . . . . . . . 1 . . Allies Corrupted . | . . . . . . . . . . . Allies Melted 1 | . . . . . . . . 1 . . Intel | -11 -10 -10 -8 -6 -6 -6 -6 -5 -5 -5 ------- Run | Yrd Mat Sub Scr Fac Low Low Dat Pro Fac Upp Active Infowar (turns) 3875 | 28 98 281 1731 852 529 356 . . . . A.S.S. 956 | . . . . 839 117 . . . . . Seismic 2922 | 28 98 281 1731 16 412 356 . . . . Robot Analysis Total . | . . . . . . . . . . . Derelict Logs Recovered 5 | . . 1 . . 1 . . 2 . 1 Drone Launches . | . . . . . . . . . . . Drone Recoveries . | . . . . . . . . . . . Exploration | -11 -10 -10 -8 -6 -6 -6 -6 -5 -5 -5 ------------- Run | Yrd Mat Sub Scr Fac Low Low Dat Pro Fac Upp Turns Passed 9052 | 114 98 281 1731 852 687 656 184 832 2322 1295 Spaces Moved 4935 | 77 95 276 1474 326 422 375 113 481 1095 201 Core 114 | 3 . . . 2 . . . . . 109 Treads 2070 | . . . 360 238 . 148 113 481 696 34 Legs 612 | . . . . . 295 227 . . 90 . Wheels 2139 | 74 95 276 1114 86 127 . . . 309 58 Hover . | . . . . . . . . . . . Flight . | . . . . . . . . . . . Fastest Speed 50 | 50 90 90 90 101 130 135 160 160 108 108 Average Speed 155 | 88 90 90 111 165 138 146 160 160 172 562 Slowest Speed 1100 | 90 90 90 250 750 280 240 160 160 330 1100 Overloaded Moves . | . . . . . . . . . . . Propulsion Burnouts . | . . . . . . . . . . . Robots Hopped . | . . . . . . . . . . . Potential Cave-ins . | . . . . . . . . . . . Cave-ins Triggered 1 | . . . . . . . . . . 1 Exploration Rate (%) 40 | 5 20 14 89 8 57 57 68 61 34 35 Regions Visited 10 Branch Regions 7 Pre-discovered Areas 4 | . . . 1 1 1 . 1 . . . Known Exits Taken 2 | . . . . 1 . . . 1 . . Unknown Exits Taken 8 | 1 1 1 1 . 1 1 1 . 1 . Scrap Searched 10 | . . . 6 . . 1 . 3 . . Spaces Dug 31 | . . . . 9 . 1 . . 20 1 Terrain Destroyed 410 | . . . . 25 35 1 . 34 226 89 Melee 10 | . . . . 9 . 1 . . . . Projectile 101 | . . . . 2 . . . 2 69 28 AOE 299 | . . . . 14 35 . . 32 157 61 Terrain Rammed . | . . . . . . . . . . . Walls Destroyed . | . . . . . . . . . . . Machines Disabled . | . . . . . . . . . . . Actions | -11 -10 -10 -8 -6 -6 -6 -6 -5 -5 -5 --------- Run | Yrd Mat Sub Scr Fac Low Low Dat Pro Fac Upp Total 5786 | 97 104 308 1560 512 492 437 116 521 1353 286 Wait 245 | . . 33 62 68 18 2 . . 57 5 Move 4925 | 76 94 275 1473 325 421 374 112 480 1094 201 Hop . | . . . . . . . . . . . Pick Up 49 | 3 6 . 8 9 6 . . 5 10 2 Fast Attach 46 | 7 . . 1 13 4 2 2 2 14 1 Attach 34 | . . . . 8 6 . . . 9 11 Detach 10 | . . . . 1 1 . . . 2 6 Swap 70 | . 2 . 7 15 10 5 . 6 20 5 Drop 40 | . 1 . 9 1 6 1 2 8 10 2 Fire 297 | 11 1 . . 46 5 24 . 20 137 53 Melee 46 | . . . . 26 15 5 . . . . Ram . | . . . . . . . . . . . Kick . | . . . . . . . . . . . Crush . | . . . . . . . . . . . Escape Stasis . | . . . . . . . . . . . Rewire 24 | . . . . . . 24 . . . . Trap . | . . . . . . . . . . . Miscellaneous . | . . . . . . . . . . . Route ------- -11/Scrapyard -10/Materials -10/Subcaves -8/Scraptown (discovered 2 exits: *Fac x2) -6/Factory (discovered 2 exits: *Fac / *Low) -6/Lower Caves -6/Lower Caves -6/Data Miner -5/Proximity Caves -5/Factory (discovered 3 exits: *Fac x2 / [*Upp]) -5/Upper Caves History --------- Turn | Location | Event 26 | -11/Scrapyard | Discovered new exit (range 15) 115 | -11/Scrapyard | Entered Materials 116 | -10/Materials | Met a group of wandering Federalists 211 | -10/Materials | Discovered new exit (range 3) 213 | -10/Materials | Entered Subcaves 214 | -10/Subcaves | Continued accompanying wandering Federalists (6) 214 | -10/Subcaves | Approached by a straggling Scientist 216 | -10/Subcaves | Learned Materials stockpile data 311 | -10/Subcaves | Build established: Mutant 455 | -10/Subcaves | Wandering Federalist uncovered a shortcut to Scraptown 494 | -10/Subcaves | Entered Scraptown 601 | -8/Scraptown | Learned location of Extension (-5) 760 | -8/Scraptown | Discovered new exit (range 5) 832 | -8/Scraptown | Visited Symbiants 861 | -8/Scraptown | Visited Cyclists 901 | -8/Scraptown | Visited SPCMW 922 | -8/Scraptown | Visited Red Mages 937 | -8/Scraptown | Visited Awakened 1077 | -8/Scraptown | Visited UFD Registry 1077 | -8/Scraptown | Registered with UFD as "Railhacker" 1116 | -8/Scraptown | Entered Cyclist Reading Room 1175 | -8/Scraptown | Visited Sword Containment 1206 | -8/Scraptown | Visited Scrapoid Pod Storage 1225 | -8/Scraptown | Visited Curators Association 1404 | -8/Scraptown | Visited Infowarlord's Domain 1410 | -8/Scraptown | Found Active Sensor Suite 1431 | -8/Scraptown | Visited Research Penetration Think Tank 1458 | -8/Scraptown | Visited Science Testing Area 1476 | -8/Scraptown | Visited Science Guys 1516 | -8/Scraptown | Visited DA-N13 Charitable Foundation 1529 | -8/Scraptown | Found DCF Scrap (31 items) 1615 | -8/Scraptown | Visited LU-1G1's Boring Crew 1694 | -8/Scraptown | Visited Supply Room 2068 | -8/Scraptown | Met Optimus 2068 | -8/Scraptown | Accepted into 0bPrime 2218 | -8/Scraptown | Discovered new exit (range 5) 2225 | -8/Scraptown | Entered Factory 2225 | -6/Factory | Evolved 8 slots: Power x1, Propulsion x2, Utility x5 2263 | -6/Factory | Loaded intel: 8 recycling unit locations 2442 | -6/Factory | Discovered new exit (range 4) 2447 | -6/Factory | Identified exit to Factory 2821 | -6/Factory | Garrison activated, responded to threat 2892 | -6/Factory | Destroyed 8 combat bots 2900 | -6/Factory | Lost 11 parts (2p4n2u3w) 2994 | -6/Factory | Learned location of Protoforge (-2) 3052 | -6/Factory | Discovered new exit (range 14) 3059 | -6/Factory | Core integrity fell below 50% 3075 | -6/Factory | Identified exit to Lower Caves 3077 | -6/Factory | Entered Lower Caves 3149 | -6/Lower Caves | Lost 3 parts (1n1u1w) 3195 | -6/Lower Caves | Attracted the attention of an 0b10 checkpoint 3472 | -6/Lower Caves | Build established: Scavenger-Mutant 3475 | -6/Lower Caves | Discovered new exit (range 14) 3764 | -6/Lower Caves | Entered another Lower Caves area 4076 | -6/Lower Caves | Attacked by a faux Warlord 4121 | -6/Lower Caves | System corruption reached 10% 4162 | -6/Lower Caves | Lost 3 parts (1p1n1u) 4383 | -6/Lower Caves | Discovered new exit (range 7) 4386 | -6/Lower Caves | Encountered a Warlord checkpoint 4420 | -6/Lower Caves | Entered Data Miner 4420 | -6/Data Miner | Accompanied by 2 allies 4422 | -6/Data Miner | Discovered new exit (range 6) 4452 | -6/Data Miner | Met Data Miner 4479 | -6/Data Miner | Learned location of Section 7 (-2) 4505 | -6/Data Miner | Received God Mode back door access code from Data Miner 4530 | -6/Data Miner | Acquired the access code to Warlord's prototype stash 4604 | -6/Data Miner | Entered Proximity Caves 4604 | -5/Proximity Caves | Accompanied by 2 allies 4772 | -5/Proximity Caves | Attracted the attention of an 0b10 base 4778 | -5/Proximity Caves | Escorted by Enhanced Grunt 4817 | -5/Proximity Caves | Lost 3 allies 4951 | -5/Proximity Caves | Attracted the attention of an 0b10 checkpoint 5101 | -5/Proximity Caves | Learned Factory trap positions 5149 | -5/Proximity Caves | Learned location of 1 exit from Factory 5330 | -5/Proximity Caves | Received a Behemoth hack from an annoying Tinkerer 5389 | -5/Proximity Caves | Discovered exit to Factory (range 7) 5436 | -5/Proximity Caves | Entered Factory 5436 | -5/Factory | Evolved 2 slots: Propulsion x1, Weapon x1 5437 | -5/Factory | Identified exit to Factory 5438 | -5/Factory | Loaded intel: 124 trap records 5834 | -5/Factory | Build established: Scavenger-Tank 6115 | -5/Factory | Spotted B-75 Beast 6251 | -5/Factory | Lost 4 parts (3n1w) 6496 | -5/Factory | Loaded intel: 7 recycling unit locations 6519 | -5/Factory | Incoming investigation squad redirected 6983 | -5/Factory | Lost 4 parts (2n1u1w) 7358 | -5/Factory | Discovered exit to Factory (range 8) 7652 | -5/Factory | Discovered new exit (range 12) 7723 | -5/Factory | Lost 3 parts (1p1n1u) 7752 | -5/Factory | Incoming investigation squad redirected 7758 | -5/Factory | Entered Upper Caves 7845 | -5/Upper Caves | Crushed by falling debris 7845 | -5/Upper Caves | System corruption reached 10% 7876 | -5/Upper Caves | Lost 3 parts (1p2n) 8144 | -5/Upper Caves | Build established: Tank 8505 | -5/Upper Caves | Spotted B-75 Beast 8549 | -5/Upper Caves | Core integrity fell below 50% 8585 | -5/Upper Caves | Destroyed B-75 Beast 8866 | -5/Upper Caves | Attracted the attention of an 0b10 checkpoint 8939 | -5/Upper Caves | Destroyed 8 combat bots 8939 | -5/Upper Caves | Lost 5 parts (1p2u2w) 8983 | -5/Upper Caves | Learned location of 1 exit from Factory 9015 | -5/Upper Caves | Attracted the attention of an 0b10 outpost 9029 | -5/Upper Caves | Core integrity fell below 20% 9053 | -5/Upper Caves | Destroyed by L-41 Fighter with Axe Last Messages --------------- DERELICT." 09017_ Penetrated by Slug. 09017_ B-60 Warrior destroyed. 09019_ Y-72 Warden: "REQUESTING BACKUP." 09020_ Missile Launcher destroyed. 09020_ Destroyed Missile Launcher. 09020_ Penetrated by Slug. 09023_ Acquired 3 matter. 09024_ Imp. Medium Armor Plating fries itself beyond repair. 09024_ Imp. Treads destroyed. 09025_ Mic. Fission Core destroyed. 09027_ Rnf. Fission Core fries itself beyond repair. 09028_ Imp. Treads fries itself beyond repair. 09030_ Imp. Heat Sink destroyed. 09032_ Penetrated by Slug. 09032_ Slug penetrates Wall. 09037_ Weapon Cycler destroyed. 09046_ System corrupted: Energy discharge (-31). Map ----- +----------------------------------------------------+ | ?????????????????????????????????????????????????? | | ?????????????????????????????????????????????????? | | ?????????????????????????????? ?????????????????? | | ?????????????????????????????? ?????????????????? | | ?????????????????????????????? ?????????????????? | | ?????????????????????????????# ?????????????????? | | ????????????????????????????## ?????????????????? | | ????????????????????????????? ?????????????????? | | ???????????????# ???????????? ?????????????????? | | ??????????????## ??????????? ?????????????????? | | ??????????? ### ???????????# ?????????????? ??? | | ??????????? ??????????# #????????????? # | | ??????????? ????????## ##??????????? # | | ??????????# ???????# ####??????? # | | ??????????" $ #####??# "#?????? # | | ????????? # #???# ###### | | ????????? [%= ##### | | ????????? %* #????? | | ????????????????# #######????? | | ????????????????# ## #??????????? | | ????????????????# #####g;### % #??????????? | | ????????????????# ?????#b##?# #??????????? | | ????????????????#???????# ##?# % % #??????????? | | ??????????????????????### g### % ## ##??????????? | | ??????????????????????# l ####"%"###???????????? | | ??????????????????????## @ ##" ###????????????? | | ???????????????????????# ;; ;#????????????? | | ???????????????????????# #????????????? | | ???????????????????????## ##?####??? ???? | | ????????????????????????#### #?#" ## ???? | | ???????????????????????????##### ##" ??? | | ??????????????????????????????## ##" ??? | | ??????????????????????????????#" #" #?? | | ??????????????????????????????#" #?? | | ??????????????????????????????## ?? | | ???????????????????????????????# ##### ?? | | ???????????????????????????????# #?????? ??? | | ?????????????????????????????### #???????? ???? | | ????????????????????????????## ######????? ???? | | ????????????????????????????# #??????????? | | ????????????????????????????#% #??????????? | | ????????????????????????????## ### #??????????? | | ?????????????????????????????# #?# #??????????? | | ????????????????????????????## ##?# #??????????? | | ????????????????????????????#% #?## ##????? ???? | | ????????????????????????????# %%#### ##???? #### | | ????????????????????????????#% #?# ###??? | | ???????????????????????????# ?### ##??? | | ???????????????????????????# %???### #???# | | ???????????????????????????# % ??#### #???# | +----------------------------------------------------+ Best States ------------- Heat Dissipation 109 Coolant Potential 80 Energy Generation 32 Energy Capacity 450 Matter Stores 300 Matter Capacity 300 Sight Range 16 Robot Scan Range 20 Terrain Scan Density 10 Armor Coverage 600 Resistance: KI 25 Weapon Shielding 66 Weapon Cycling 15 Phase Shifting 5 Evasion (%) 55 Recoil Reduction 5 Energy Filtering 30 Offensive Hacking 14 Item Schematics ----------------- Enh. Force Rifle | -6/Data Miner | Free Combat Drone Bay | -6/Data Miner | Free Lgt. Regenerative Plating | -6/Data Miner | Free Cld. Nuclear Pulse Thruster | -6/Data Miner | Free Imp. Energy Well | -6/Data Miner | Free Myomer Leg | -6/Data Miner | Free Adv. Reaction Control System | -6/Data Miner | Free Phase Gun | -6/Data Miner | Free Disruptor Cannon | -6/Data Miner | Free Q-thruster | -6/Data Miner | Free Adv. Launcher Guidance Computer | -6/Data Miner | Free Robot Schematics ------------------ S-27 Virus | -6/Data Miner | Free M-22 Extractor | -6/Data Miner | Free R-10 Processor | -6/Data Miner | Free B-48 Gladiator | -6/Data Miner | Free H-77 Assassin | -6/Data Miner | Free Fabricated ------------ Nothing Repaired ---------- Nothing Alien Tech Used ----------------- None Achievements -------------- None Challenges ------------ None Game ------ Seed ReflexStormMantle Manual? 0 Play Time 01:40:46 Cumulative 104.2 hours Start 2025.10.02 @ 11:20:15 End 2025.10.02 @ 15:48:05 Sessions 4 Manual Loads 0 Difficulty Rogue Special Mode None Game No. 61 Rogue 61 Adventurer 0 Explorer 0 Win Type - Total 2 Types 1/0/0/1/0/0/0/0/0/0 Lore% 40 Gallery% 49 Achievement% 49 Wizard Run 0 Options --------- Layout 1 ASCII 0 Keyboard 1 Movement Arrows Keybinds 0 Fullscreen 2 Font 24/Smallcaps Map View 50x35 Zoom Use 0% Tactical HUD 1 Map Filters NONE Filters NONE Steam 1 RUN: 6da1b041-2af5-41e9-831b-0bab0d173c17